[Event "DEN-chT XtraCon 2018-19"]
[Site "Denmark"]
[Date "2018.12.09"]
[Round "4"]
[White "Rewitz, Poul"]
[Black "Vinter-Schou, Uffe"]
[Result "0-1"]
[ECO "B06"]
[WhiteElo "2240"]
[BlackElo "2334"]
[Annotator "NA"]
[PlyCount "74"]
[EventDate "2018.10.27"]
[EventType "team-tourn"]
[EventCountry "DEN"]
[SourceTitle "playchess.com"]
[Source "ChessBase"]
[SourceQuality "1"]
[TimeControl "40/5400+30:1800+30"]

1. e4 {[%emt 0:00:00]} g6 {[%emt 0:02:25]} 2. d4 {[%emt 0:00:09]} Bg7 {[%emt 0:00:05]} 3. Nc3 {[%emt 0:00:48]} c5 {[%emt 0:05:32]} 4. d5 {[%emt 0:01:07]} d6 {[%emt 0:00:08]} 5. Nf3 {[%emt 0:02:01]} Nf6 {[%emt 0:00:18]} 6. Be2 {[%emt 0:01:14]} O-O {[%emt 0:00:08]} 7. O-O {[%emt 0:00:40]} Na6 {[%emt 0:00:07]} 8. a4 {[%emt 0:03:44]} Nb4 {[%emt 0:01:39]} 9. Bf4 {[%emt 0:06:41]} Nh5 {[%emt 0:07:49]} 10. Bg5 {[%emt 0:00:50]} h6 {[%emt 0:01:35]} 11. Be3 {[%emt 0:02:01]} b6 {[%emt 0:21:41]} 12. Qc1 {[%emt 0:08:42]} Kh7 {[%emt 0:00:21]} 13. Nb5 {[%emt 0:00:50]} f5 {[%emt 0:07:22]} 14. c3 {[%emt 0:20:59]} fxe4 {[%emt 0:01:05]} 15. cxb4 {[%emt 0:00:26]} exf3 {[%emt 0:00:44]} 16. Bxf3 {[%emt 0:00:36]} Rxf3 {[%emt 0:13:51]} 17. gxf3 {[%emt 0:00:12]} Bh3 {[%emt 0:00:21]} 18. Re1 {[%emt 0:09:23]} Qf8 {[%emt 0:01:27]} 19. f4 {[%emt 0:00:50]} Qf5 {[%emt 0:10:25]} 20. f3 {[%emt 0:01:54]} Qxd5 {[%emt 0:00:58]} 21. Kf2 {[%emt 0:04:04]} Rf8 {[%emt 0:03:25]} 22. bxc5 {[%emt 0:01:52]} bxc5 {[%emt 0:00:29]} 23. Nc3 {[%emt 0:01:24]} Qc6 {[%emt 0:05:52]} 24. Ne4 {[%emt 0:01:55]} e5 {[%emt 0:00:38]} 25. Rd1 {[%emt 0:06:04]} exf4 {[%emt 0:00:17]} 26. Bd4 {[%emt 0:00:44]} Rc8 {[%emt 0:11:43]} 27. Bxg7 {[%emt 0:01:03]} d5 {[%emt 0:00:09]} 28. Qxc5 {[%emt 0:07:36]} dxe4 {[%emt 0:01:01]} 29. Qxc6 {[%emt 0:00:18]} Rxc6 {[%emt 0:00:46]} 30. Bc3 {[%emt 0:00:46]} e3+ {[%emt 0:01:18]} 31. Ke2 {[%emt 0:00:32]} g5 {[%emt 0:00:18]} 32. Rd8 {[%emt 0:00:45]} Be6 {[%emt 0:00:50]} 33. Rad1 {[%emt 0:01:07]} g4 {[%emt 0:00:14]} 34. R1d7+ {[%emt 0:04:23]} Bxd7 {[%emt 0:00:34]} 35. Rxd7+ {[%emt 0:00:07]} Kg6 {[%emt 0:00:01]} 36. fxg4 {[%emt 0:00:28]} Nf6 {[%emt 0:00:01]} 37. Kf3 {[%emt 0:00:30]} Nxd7 {[%emt 0:00:30]} 0-1

[Event "DEN-chT XtraCon 2018-19"]
[Site "Denmark"]
[Date "2018.12.09"]
[Round "4"]
[White "Hansen, Lars"]
[Black "Ochsner, Thomas"]
[Result "0-1"]
[ECO "A45"]
[WhiteElo "2206"]
[BlackElo "2281"]
[Annotator "ChessBase"]
[PlyCount "78"]
[EventDate "2018.10.27"]
[EventType "team-tourn"]
[EventCountry "DEN"]
[SourceTitle "playchess.com"]
[Source "ChessBase"]
[SourceQuality "1"]
[TimeControl "40/5400+30:1800+30"]

1. d4 Nf6 2. Bg5 c5 3. d5 g6 4. Nc3 Bg7 5. e4 d6 6. Nf3 O-O 7. Qd2 Bg4 8. Bh6 Nbd7 9. Be2 Re8 10. O-O Rb8 11. Bxg7 Kxg7 12. Ng5 Bxe2 13. Qxe2 h6 14. Nh3 b5 15. f3 Qa5 16. Nd1 e6 17. dxe6 fxe6 18. f4 Qb4 19. Nhf2 d5 20. c3 Qc4 21. Qc2 Qa4 22. b3 Qa5 23. e5 Ng8 24. Ne3 Rf8 25. Nd3 Qb6 26. c4 bxc4 27. bxc4 d4 28. Ng4 Qc6 29. Ngf2 Ne7 30. g4 h5 31. Qe2 hxg4 32. Nxg4 Nf5 33. Qg2 Rfc8 34. Qxc6 Rxc6 35. Kf2 Ra6 36. Kf3 Rh8 37. Ke4 Rh3 38. Rfb1 Rb6 39. Rxb6 axb6 0-1

[Event "DEN-chT XtraCon 2018-19"]
[Site "Denmark"]
[Date "2018.12.09"]
[Round "4"]
[White "Kristensen, Bjarke Hautop"]
[Black "Carstensen, Jacob"]
[Result "1-0"]
[ECO "A05"]
[WhiteElo "2179"]
[BlackElo "2361"]
[Annotator "NA"]
[PlyCount "87"]
[EventDate "2018.10.27"]
[EventType "team-tourn"]
[EventCountry "DEN"]
[SourceTitle "playchess.com"]
[Source "ChessBase"]
[SourceQuality "1"]
[TimeControl "40/5400+30:1800+30"]

1. Nf3 {[%emt 0:00:00]} Nf6 {[%emt 0:00:00]} 2. c4 {[%emt 0:00:00]} e6 {[%emt 0:00:00]} 3. Nc3 {[%emt 0:00:00]} d5 {[%emt 0:00:10]} 4. e3 {[%emt 0:00:00]} c6 {[%emt 0:00:06]} 5. b3 {[%emt 0:00:00]} Bd6 {[%emt 0:00:05]} 6. Bb2 {[%emt 0:00:00]} O-O {[%emt 0:00:09]} 7. Be2 {[%emt 0:00:09]} Nbd7 {[%emt 0:00:10]} 8. Qc2 {[%emt 0:02:46]} Qe7 {[%emt 0:02:30]} 9. Rg1 {[%emt 0:00:28]} dxc4 {[%emt 0:09:55]} 10. bxc4 {[%emt 0:07:23]} e5 {[%emt 0:00:33]} 11. g4 {[%emt 0:01:01]} Rd8 {[%emt 0:06:57]} 12. g5 {[%emt 0:08:54]} Ne8 {[%emt 0:03:18]} 13. h4 {[%emt 0:00:05]} Nf8 {[%emt 0:00:39]} 14. Ne4 {[%emt 0:02:31]} Bc7 {[%emt 0:03:17]} 15. Qc3 {[%emt 0:07:19]} Bf5 {[%emt 0:08:04]} 16. Ng3 {[%emt 0:01:13]} Bg4 {[%emt 0:01:12]} 17. Nxe5 {[%emt 0:02:57]} Bxe2 {[%emt 0:03:36]} 18. Kxe2 {[%emt 0:03:39]} Bxe5 {[%emt 0:00:42]} 19. Qxe5 {[%emt 0:00:01]} Qxe5 {[%emt 0:00:22]} 20. Bxe5 {[%emt 0:00:05]} Ng6 {[%emt 0:00:07]} 21. f4 {[%emt 0:04:46]} Nd6 {[%emt 0:02:58]} 22. Bxd6 {[%emt 0:05:16]} Rxd6 {[%emt 0:00:16]} 23. h5 {[%emt 0:02:04]} Nf8 {[%emt 0:00:09]} 24. d4 {[%emt 0:12:12]} b5 {[%emt 0:04:06]} 25. c5 {[%emt 0:11:49]} Rd7 {[%emt 0:00:42]} 26. a4 {[%emt 0:00:07]} b4 {[%emt 0:05:04]} 27. a5 {[%emt 0:04:27]} Re8 {[%emt 0:00:49]} 28. Kf3 {[%emt 0:03:42]} Ne6 {[%emt 0:01:09]} 29. Rgb1 {[%emt 0:02:04]} Nc7 {[%emt 0:00:43]} 30. Rxb4 {[%emt 0:06:31]} Rxe3+ {[%emt 0:00:25]} 31. Kxe3 {[%emt 0:00:01]} Nd5+ {[%emt 0:00:08]} 32. Ke4 {[%emt 0:00:06]} Nxb4 {[%emt 0:00:09]} 33. Rb1 {[%emt 0:00:16]} Na6 {[%emt 0:02:50]} 34. Nf5 {[%emt 0:00:34]} g6 {[%emt 0:01:26]} 35. hxg6 {[%emt 0:03:31]} hxg6 {[%emt 0:00:11]} 36. Nd6 {[%emt 0:00:15]} Re7+ {[%emt 0:04:16]} 37. Kd3 {[%emt 0:04:18]} Kf8 {[%emt 0:02:14]} 38. Kc4 {[%emt 0:01:48]} Rd7 {[%emt 0:03:26]} 39. Rb7 {[%emt 0:02:49]} Rxb7 {[%emt 0:00:44]} 40. Nxb7 {[%emt 0:00:04]} Ke7 {[%emt 0:00:20]} 41. Nd6 {[%emt 0:30:06]} Nc7 {[%emt 0:30:54]} 42. Nc8+ {[%emt 0:04:16]} Kd7 {[%emt 0:00:46]} 43. Nxa7 {[%emt 0:00:24]} Ne6 {[%emt 0:01:09]} 44. Nxc6 {[%emt 0:00:39]} 1-0

[Event "DEN-chT XtraCon 2018-19"]
[Site "Denmark"]
[Date "2018.12.09"]
[Round "4"]
[White "Vesterli, Michael E."]
[Black "Ostergaard, Jens"]
[Result "1/2-1/2"]
[ECO "D61"]
[WhiteElo "2166"]
[BlackElo "2204"]
[Annotator "NA"]
[PlyCount "121"]
[EventDate "2018.10.27"]
[EventType "team-tourn"]
[EventCountry "DEN"]
[SourceTitle "playchess.com"]
[Source "ChessBase"]
[SourceQuality "1"]
[TimeControl "40/5400+30:1800+30"]

1. d4 {[%emt 0:00:00]} Nf6 {[%emt 0:00:00]} 2. c4 {[%emt 0:00:00]} e6 {[%emt 0:00:04]} 3. Nf3 {[%emt 0:00:11]} d5 {[%emt 0:00:50]} 4. Qc2 {[%emt 0:01:04]} Be7 {[%emt 0:00:55]} 5. Bg5 {[%emt 0:00:28]} O-O {[%emt 0:01:02]} 6. e3 {[%emt 0:00:54]} Nbd7 {[%emt 0:09:28]} 7. Nc3 {[%emt 0:01:43]} c6 {[%emt 0:01:16]} 8. O-O-O {[%emt 0:03:18]} a5 {[%emt 0:16:07]} 9. Kb1 {[%emt 0:01:37]} b6 {[%emt 0:05:05]} 10. e4 {[%emt 0:14:26]} dxe4 {[%emt 0:03:48]} 11. Ne5 {[%emt 0:01:15]} Bb7 {[%emt 0:04:36]} 12. h4 {[%emt 0:09:07]} Qe8 {[%emt 0:17:48]} 13. Nxe4 {[%emt 0:10:48]} Nxe4 {[%emt 0:09:57]} 14. Qxe4 {[%emt 0:00:22]} Nf6 {[%emt 0:01:38]} 15. Bxf6 {[%emt 0:01:39]} gxf6 {[%emt 0:04:46]} 16. Bd3 {[%emt 0:03:58]} f5 {[%emt 0:00:07]} 17. Qe2 {[%emt 0:01:16]} Kh8 {[%emt 0:02:14]} 18. Bc2 {[%emt 0:09:25]} Rg8 {[%emt 0:06:33]} 19. Ba4 {[%emt 0:04:39]} Bf6 {[%emt 0:03:57]} 20. g4 {[%emt 0:04:42]} fxg4 {[%emt 0:04:45]} 21. Nxg4 {[%emt 0:03:16]} Qe7 {[%emt 0:01:03]} 22. Bc2 {[%emt 0:01:07]} c5 {[%emt 0:02:04]} 23. d5 {[%emt 0:01:32]} exd5 {[%emt 0:01:13]} 24. Qd3 {[%emt 0:02:12]} Rg7 {[%emt 0:01:12]} 25. cxd5 {[%emt 0:00:36]} Bd4 {[%emt 0:00:55]} 26. Nh6 {[%emt 0:01:37]} Ba6 {[%emt 0:00:55]} 27. Qf5 {[%emt 0:01:26]} Qf6 {[%emt 0:00:29]} 28. Qh5 {[%emt 0:01:42]} Bxb2 {[%emt 0:00:27]} 29. Rh3 {[%emt 0:06:25]} Bd4 {[%emt 0:00:31]} 30. Nf5 {[%emt 0:00:56]} Rg6 {[%emt 0:00:33]} 31. Nxd4 {[%emt 0:00:27]} Rh6 {[%emt 0:00:32]} 32. Rf3 {[%emt 0:03:06]} Rxh5 {[%emt 0:00:28]} 33. Rxf6 {[%emt 0:00:06]} cxd4 {[%emt 0:00:06]} 34. Rxd4 {[%emt 0:00:15]} Rd8 {[%emt 0:00:22]} 35. Rxb6 {[%emt 0:00:25]} Be2 {[%emt 0:00:31]} 36. Bb3 {[%emt 0:02:05]} Kg7 {[%emt 0:00:46]} 37. d6 {[%emt 0:03:23]} Rb5 {[%emt 0:00:26]} 38. Rc6 {[%emt 0:00:56]} Bf3 {[%emt 0:00:51]} 39. Rc7 {[%emt 0:00:24]} Bh5 {[%emt 0:00:31]} 40. d7 {[%emt 0:01:55]} Kf8 {[%emt 0:00:21]} 41. Kc1 {[%emt 0:33:00]} Bg6 {[%emt 0:30:32]} 42. Kd2 {[%emt 0:00:00]} Ke7 {[%emt 0:00:00]} 43. Kc3 {[%emt 0:00:00]} Bf5 {[%emt 0:00:00]} 44. Ba4 {[%emt 0:00:00]} Rb1 {[%emt 0:00:00]} 45. Ra7 {[%emt 0:00:00]} Rc1+ {[%emt 0:00:00]} 46. Kb2 {[%emt 0:00:00]} Rc5 {[%emt 0:00:00]} 47. Rb7 {[%emt 0:00:00]} Be6 {[%emt 0:00:00]} 48. Bb5 {[%emt 0:00:00]} Rf5 {[%emt 0:00:00]} 49. a4 {[%emt 0:00:00]} Rxf2+ {[%emt 0:00:00]} 50. Kc3 {[%emt 0:00:00]} Rf3+ {[%emt 0:00:00]} 51. Kd2 {[%emt 0:00:00]} Kf6 {[%emt 0:00:00]} 52. Bd3 {[%emt 0:00:00]} Ke7 {[%emt 0:01:52]} 53. Ra7 {[%emt 0:00:00]} Rf2+ {[%emt 0:01:45]} 54. Ke3 {[%emt 0:00:00]} Rb2 {[%emt 0:01:24]} 55. Bb5 {[%emt 0:00:00]} Rb3+ {[%emt 0:00:23]} 56. Kd2 {[%emt 0:00:00]} Rb4 {[%emt 0:01:20]} 57. Rxb4 {[%emt 0:00:00]} axb4 {[%emt 0:00:04]} 58. a5 {[%emt 0:00:00]} b3 {[%emt 0:01:26]} 59. Rb7 {[%emt 0:01:56]} Kd6 {[%emt 0:00:47]} 60. Kc3 {[%emt 0:04:22]} Bxd7 {[%emt 0:00:36]} 61. Bxd7 {[%emt 0:06:29]} 1/2-1/2

[Event "DEN-chT XtraCon 2018-19"]
[Site "Denmark"]
[Date "2018.12.09"]
[Round "4"]
[White "Nordenbaek, Jan"]
[Black "Nielsen, Thomas Bach"]
[Result "1/2-1/2"]
[ECO "B13"]
[WhiteElo "2165"]
[BlackElo "2139"]
[Annotator "ChessBase"]
[PlyCount "83"]
[EventDate "2018.10.27"]
[EventType "team-tourn"]
[EventCountry "DEN"]
[SourceTitle "playchess.com"]
[Source "ChessBase"]
[SourceQuality "1"]
[TimeControl "40/5400+30:1800+30"]

1. e4 {[%emt 0:00:00]} c6 {[%emt 0:04:24]} 2. d4 {[%emt 0:00:00]} d5 {[%emt 0:00:57]} 3. exd5 {[%emt 0:00:23]} cxd5 {[%emt 0:00:11]} 4. Bd3 {[%emt 0:00:06]} Nc6 {[%emt 0:00:12]} 5. c3 {[%emt 0:00:14]} Qc7 {[%emt 0:00:55]} 6. Ne2 {[%emt 0:00:43]} Bg4 {[%emt 0:06:45]} 7. O-O {[%emt 0:00:15]} e6 {[%emt 0:04:57]} 8. Qe1 {[%emt 0:00:35]} Bxe2 {[%emt 1:15:39]} 9. Qxe2 {[%emt 0:00:39]} Bd6 {[%emt 0:00:00]} 10. Kh1 {[%emt 0:07:40]} Nf6 {[%emt 0:00:00]} 11. Bg5 {[%emt 0:13:39]} O-O-O {[%emt 0:00:00]} 12. Na3 {[%emt 0:06:09]} a6 {[%emt 0:00:00]} 13. Qf3 {[%emt 0:07:05]} Rdg8 {[%emt 0:00:00]} 14. Nc2 {[%emt 0:04:03]} h6 {[%emt 0:00:00]} 15. Bd2 {[%emt 0:12:13]} Kb8 {[%emt 0:00:00]} 16. b4 {[%emt 0:02:05]} e5 {[%emt 0:00:00]} 17. Qh3 {[%emt 0:05:40]} e4 {[%emt 0:00:00]} 18. Be2 {[%emt 0:00:04]} Qc8 {[%emt 0:00:00]} 19. Qxc8+ {[%emt 0:01:42]} Rxc8 {[%emt 0:00:00]} 20. Rab1 {[%emt 0:04:09]} Ka7 {[%emt 0:00:00]} 21. b5 {[%emt 0:01:08]} Na5 {[%emt 0:00:00]} 22. Ne3 {[%emt 0:04:02]} g6 {[%emt 0:00:00]} 23. g3 {[%emt 0:03:07]} Nc4 {[%emt 0:00:00]} 24. Bxc4 {[%emt 0:00:40]} dxc4 {[%emt 0:00:00]} 25. bxa6 {[%emt 0:00:52]} bxa6 {[%emt 0:00:00]} 26. f3 {[%emt 0:00:27]} Rh7 {[%emt 0:00:59]} 27. Ng4 {[%emt 0:02:10]} Nxg4 {[%emt 0:01:16]} 28. fxg4 {[%emt 0:00:04]} f5 {[%emt 0:06:30]} 29. gxf5 {[%emt 0:00:15]} gxf5 {[%emt 0:00:01]} 30. Rxf5 {[%emt 0:00:15]} Rb8 {[%emt 0:01:16]} 31. Rff1 {[%emt 0:06:04]} h5 {[%emt 0:00:45]} 32. Be3 {[%emt 0:01:15]} Rxb1 {[%emt 0:00:25]} 33. Rxb1 {[%emt 0:00:04]} Rb7 {[%emt 0:00:26]} 34. Rxb7+ {[%emt 0:00:43]} Kxb7 {[%emt 0:00:01]} 35. Kg2 {[%emt 0:00:12]} Kc6 {[%emt 0:00:20]} 36. h4 {[%emt 0:02:07]} Ba3 {[%emt 0:01:16]} 37. g4 {[%emt 0:00:36]} hxg4 {[%emt 0:00:06]} 38. h5 {[%emt 0:00:10]} Bf8 {[%emt 0:01:00]} 39. Kg3 {[%emt 0:00:19]} Kd5 {[%emt 0:00:22]} 40. Kxg4 {[%emt 0:00:10]} Bg7 {[%emt 0:00:43]} 41. Kf5 {[%emt 0:30:06]} Bh8 {[%emt 0:30:15]} 42. h6 {[%emt 0:00:14]} 1/2-1/2

[Event "DEN-chT XtraCon 2018-19"]
[Site "Denmark"]
[Date "2018.12.09"]
[Round "4"]
[White "Andersen, Ib Hother"]
[Black "Haubro, Sigfred"]
[Result "1/2-1/2"]
[ECO "B01"]
[WhiteElo "2159"]
[BlackElo "2153"]
[Annotator "NA"]
[PlyCount "36"]
[EventDate "2018.10.27"]
[EventType "team-tourn"]
[EventCountry "DEN"]
[SourceTitle "playchess.com"]
[Source "ChessBase"]
[SourceQuality "1"]
[TimeControl "40/5400+30:1800+30"]

1. e4 {[%emt 0:00:00]} d5 {[%emt 0:00:00]} 2. exd5 {[%emt 0:00:01]} Qxd5 {[%emt 0:00:00]} 3. Nc3 {[%emt 0:00:03]} Qa5 {[%emt 0:00:06]} 4. d4 {[%emt 0:00:06]} c6 {[%emt 0:00:07]} 5. Nf3 {[%emt 0:00:14]} Nf6 {[%emt 0:00:09]} 6. Bc4 {[%emt 0:00:16]} Bf5 {[%emt 0:00:15]} 7. Bd2 {[%emt 0:01:43]} Qc7 {[%emt 0:01:41]} 8. Ne5 {[%emt 0:01:42]} e6 {[%emt 0:00:41]} 9. g4 {[%emt 0:10:46]} Be4 {[%emt 0:07:17]} 10. f3 {[%emt 0:06:31]} Bd5 {[%emt 0:02:04]} 11. Bd3 {[%emt 0:01:21]} Nbd7 {[%emt 0:05:03]} 12. Qe2 {[%emt 0:01:33]} Nxe5 {[%emt 0:01:47]} 13. dxe5 {[%emt 0:00:04]} Nd7 {[%emt 0:00:12]} 14. Nxd5 {[%emt 0:02:40]} cxd5 {[%emt 0:00:41]} 15. f4 {[%emt 1:10:30]} Be7 {[%emt 0:04:35]} 16. O-O-O {[%emt 0:00:00]} O-O-O {[%emt 0:00:26]} 17. Kb1 {[%emt 0:00:00]} Kb8 {[%emt 0:00:07]} 18. Be3 {[%emt 0:00:00]} Rc8 {[%emt 0:08:53]} 1/2-1/2

[Event "DEN-chT XtraCon 2018-19"]
[Site "Denmark"]
[Date "2018.12.09"]
[Round "4"]
[White "Brorsen, Jacob Abildlund"]
[Black "Svenninggaard, Thomas"]
[Result "0-1"]
[ECO "B06"]
[WhiteElo "2143"]
[BlackElo "2120"]
[Annotator "NA"]
[PlyCount "110"]
[EventDate "2018.10.27"]
[EventType "team-tourn"]
[EventCountry "DEN"]
[SourceTitle "playchess.com"]
[Source "ChessBase"]
[SourceQuality "1"]
[TimeControl "40/5400+30:1800+30"]

1. e4 {[%emt 0:00:00]} d6 {[%emt 0:01:02]} 2. d4 {[%emt 0:00:00]} g6 {[%emt 0:00:05]} 3. Nf3 {[%emt 0:02:35]} Bg7 {[%emt 0:00:23]} 4. Be2 {[%emt 0:00:39]} c5 {[%emt 0:00:19]} 5. O-O {[%emt 0:00:51]} cxd4 {[%emt 0:00:55]} 6. Nxd4 {[%emt 0:00:11]} Nf6 {[%emt 0:00:09]} 7. Re1 {[%emt 0:07:10]} O-O {[%emt 0:03:44]} 8. Bf3 {[%emt 0:02:15]} Nbd7 {[%emt 0:12:22]} 9. Nc3 {[%emt 0:07:29]} Ne5 {[%emt 0:06:26]} 10. h3 {[%emt 0:02:42]} Bd7 {[%emt 0:12:59]} 11. a4 {[%emt 0:01:45]} Nxf3+ {[%emt 0:10:13]} 12. Nxf3 {[%emt 0:00:52]} Bc6 {[%emt 0:00:30]} 13. Nd4 {[%emt 0:04:21]} Nd7 {[%emt 0:03:05]} 14. Ra3 {[%emt 0:08:53]} a5 {[%emt 0:05:51]} 15. Ndb5 {[%emt 0:09:42]} Nc5 {[%emt 0:02:08]} 16. Qe2 {[%emt 0:15:59]} Re8 {[%emt 0:07:53]} 17. Qc4 {[%emt 0:06:56]} Nxe4 {[%emt 0:15:54]} 18. Nc7 {[%emt 0:09:16]} Qxc7 {[%emt 0:03:41]} 19. Rxe4 {[%emt 0:00:48]} Rac8 {[%emt 0:01:57]} 20. Re1 {[%emt 0:00:24]} Qd7 {[%emt 0:02:48]} 21. Qd3 {[%emt 0:01:18]} d5 {[%emt 0:02:20]} 22. Rd1 {[%emt 0:03:31]} d4 {[%emt 0:01:29]} 23. Nb5 {[%emt 0:00:47]} e5 {[%emt 0:01:40]} 24. Na7 {[%emt 0:02:26]} Rcd8 {[%emt 0:00:52]} 25. Bg5 {[%emt 0:01:48]} f6 {[%emt 0:00:45]} 26. Nxc6 {[%emt 0:00:14]} Qxc6 {[%emt 0:00:24]} 27. Bd2 {[%emt 0:00:05]} b6 {[%emt 0:00:42]} 28. f3 {[%emt 0:02:55]} Bf8 {[%emt 0:00:20]} 29. Raa1 {[%emt 0:01:05]} Rc8 {[%emt 0:00:19]} 30. Rdc1 {[%emt 0:01:22]} f5 {[%emt 0:00:38]} 31. Kh1 {[%emt 0:00:22]} Qc4 {[%emt 0:00:32]} 32. b3 {[%emt 0:01:09]} Qxd3 {[%emt 0:00:30]} 33. cxd3 {[%emt 0:00:02]} Rxc1+ {[%emt 0:01:31]} 34. Rxc1 {[%emt 0:00:11]} Bc5 {[%emt 0:00:05]} 35. Re1 {[%emt 0:01:24]} Kf7 {[%emt 0:00:09]} 36. Kg1 {[%emt 0:01:17]} Re6 {[%emt 0:00:26]} 37. Kf2 {[%emt 0:00:52]} Ke7 {[%emt 0:00:11]} 38. Rc1 {[%emt 0:00:35]} Kd6 {[%emt 0:00:20]} 39. Ke2 {[%emt 0:01:10]} Kd5 {[%emt 0:00:19]} 40. Bg5 {[%emt 0:00:34]} Re8 {[%emt 0:01:41]} 41. Bd2 {[%emt 0:30:38]} e4 {[%emt 0:31:05]} 42. Bf4 {[%emt 0:01:07]} e3 {[%emt 0:01:40]} 43. Bg5 {[%emt 0:00:00]} Re6 {[%emt 0:00:00]} 44. Rc2 {[%emt 0:00:00]} Rc6 {[%emt 0:00:00]} 45. Rc4 {[%emt 0:00:00]} Rc8 {[%emt 0:00:00]} 46. Bf6 {[%emt 0:00:00]} Rb8 {[%emt 0:00:00]} 47. Rc2 {[%emt 0:00:00]} b5 {[%emt 0:00:00]} 48. axb5 {[%emt 0:00:00]} Rxb5 {[%emt 0:00:00]} 49. Ra2 {[%emt 0:00:00]} Rxb3 {[%emt 0:00:00]} 50. Rxa5 {[%emt 0:00:00]} Rb2+ {[%emt 0:00:00]} 51. Kf1 {[%emt 0:00:00]} Rb1+ {[%emt 0:00:00]} 52. Ke2 {[%emt 0:00:00]} Kc6 {[%emt 0:00:00]} 53. Ra4 {[%emt 0:00:00]} Rb2+ {[%emt 0:00:00]} 54. Kf1 {[%emt 0:00:00]} e2+ {[%emt 0:00:00]} 55. Kf2 {[%emt 0:00:00]} Bb4 {[%emt 0:00:00]} 0-1

[Event "DEN-chT XtraCon 2018-19"]
[Site "Denmark"]
[Date "2018.12.09"]
[Round "4"]
[White "Pedersen, Lars"]
[Black "Skousen, Nikolai"]
[Result "1/2-1/2"]
[ECO "E43"]
[WhiteElo "2103"]
[BlackElo "2231"]
[Annotator "NA"]
[PlyCount "53"]
[EventDate "2018.10.27"]
[EventType "team-tourn"]
[EventCountry "DEN"]
[SourceTitle "playchess.com"]
[Source "ChessBase"]
[SourceQuality "1"]
[TimeControl "40/5400+30:1800+30"]

1. d4 {[%emt 0:00:00]} Nf6 {[%emt 0:00:00]} 2. c4 {[%emt 0:00:00]} e6 {[%emt 0:01:00]} 3. Nc3 {[%emt 0:00:05]} Bb4 {[%emt 0:00:06]} 4. e3 {[%emt 0:00:13]} b6 {[%emt 0:00:43]} 5. Nf3 {[%emt 0:02:06]} Bb7 {[%emt 0:00:10]} 6. Bd3 {[%emt 0:00:20]} Ne4 {[%emt 0:00:28]} 7. Qc2 {[%emt 0:02:06]} f5 {[%emt 0:00:34]} 8. a3 {[%emt 0:04:21]} Bxc3+ {[%emt 0:01:17]} 9. bxc3 {[%emt 0:00:11]} O-O {[%emt 0:00:37]} 10. O-O {[%emt 0:03:48]} d6 {[%emt 0:03:44]} 11. a4 {[%emt 0:09:36]} a5 {[%emt 0:07:11]} 12. Rb1 {[%emt 0:09:35]} Nd7 {[%emt 0:03:14]} 13. Ne1 {[%emt 0:04:09]} Qe7 {[%emt 0:08:50]} 14. f3 {[%emt 0:00:58]} Nef6 {[%emt 0:00:16]} 15. Ba3 {[%emt 0:10:23]} g6 {[%emt 0:06:58]} 16. Qa2 {[%emt 0:10:33]} c5 {[%emt 0:14:41]} 17. Qf2 {[%emt 0:01:15]} Rac8 {[%emt 0:04:49]} 18. Qh4 {[%emt 0:01:58]} Rf7 {[%emt 0:05:29]} 19. h3 {[%emt 0:04:12]} e5 {[%emt 0:11:51]} 20. Qf2 {[%emt 0:11:00]} e4 {[%emt 0:03:25]} 21. Be2 {[%emt 0:00:08]} exf3 {[%emt 0:02:52]} 22. gxf3 {[%emt 0:00:11]} Re8 {[%emt 0:02:44]} 23. Ng2 {[%emt 0:01:33]} Qd8 {[%emt 0:04:15]} 24. Bd3 {[%emt 0:00:21]} Rfe7 {[%emt 0:00:56]} 25. Bc1 {[%emt 0:00:57]} Ba6 {[%emt 0:01:12]} 26. Qg3 {[%emt 0:04:03]} Nf8 {[%emt 0:05:39]} 27. Kh2 {[%emt 0:03:52]} 1/2-1/2

[Event "DEN-chT XtraCon 2018-19"]
[Site "Denmark"]
[Date "2018.12.09"]
[Round "4"]
[White "Skjoldager, Per"]
[Black "Laursen, Niels Norskov"]
[Result "1/2-1/2"]
[ECO "B00"]
[WhiteElo "2065"]
[BlackElo "2282"]
[Annotator "NA"]
[PlyCount "80"]
[EventDate "2018.10.27"]
[EventType "team-tourn"]
[EventCountry "DEN"]
[SourceTitle "playchess.com"]
[Source "ChessBase"]
[SourceQuality "1"]
[TimeControl "40/5400+30:1800+30"]

1. e4 {[%emt 0:00:00]} d6 {[%emt 0:00:00]} 2. Nf3 {[%emt 0:00:00]} Nf6 {[%emt 0:00:31]} 3. Nc3 {[%emt 0:01:40]} g6 {[%emt 0:00:12]} 4. Bc4 {[%emt 0:02:44]} Bg7 {[%emt 0:02:38]} 5. d3 {[%emt 0:00:41]} c5 {[%emt 0:06:19]} 6. e5 {[%emt 0:22:50]} dxe5 {[%emt 0:00:55]} 7. Nxe5 {[%emt 0:00:50]} O-O {[%emt 0:00:20]} 8. O-O {[%emt 0:02:32]} Nbd7 {[%emt 0:04:25]} 9. Bf4 {[%emt 0:04:48]} Nxe5 {[%emt 0:17:12]} 10. Bxe5 {[%emt 0:00:10]} Ng4 {[%emt 0:01:38]} 11. Bxg7 {[%emt 0:01:21]} Qd6 {[%emt 0:03:01]} 12. f4 {[%emt 0:08:47]} Kxg7 {[%emt 0:00:49]} 13. Qe2 {[%emt 0:05:37]} Nh6 {[%emt 0:17:24]} 14. Rae1 {[%emt 0:06:28]} Nf5 {[%emt 0:03:56]} 15. Qe5+ {[%emt 0:10:27]} Qxe5 {[%emt 0:02:18]} 16. Rxe5 {[%emt 0:00:34]} b6 {[%emt 0:00:43]} 17. g4 {[%emt 0:13:49]} Nd4 {[%emt 0:00:59]} 18. g5 Bh3 {[%emt 0:13:10]} 19. Rf2 {[%emt 0:02:13]} e6 {[%emt 0:06:06]} 20. Re3 {[%emt 0:00:45]} Bf5 {[%emt 0:00:50]} 21. Nb5 {[%emt 0:01:51]} Nxb5 {[%emt 0:01:23]} 22. Bxb5 {[%emt 0:00:02]} Rac8 {[%emt 0:04:43]} 23. Ba6 {[%emt 0:00:21]} Rc7 {[%emt 0:00:15]} 24. a4 {[%emt 0:02:20]} Rh8 {[%emt 0:00:42]} 25. h4 {[%emt 0:00:47]} h6 {[%emt 0:00:45]} 26. Rh2 {[%emt 0:02:53]} Rd7 {[%emt 0:00:34]} 27. Bc4 {[%emt 0:00:42]} Rd4 {[%emt 0:01:59]} 28. Rf3 {[%emt 0:00:12]} hxg5 {[%emt 0:03:40]} 29. hxg5 {[%emt 0:00:10]} Rxh2 {[%emt 0:02:03]} 30. Kxh2 {[%emt 0:00:01]} Rd8 {[%emt 0:00:11]} 31. Kg2 {[%emt 0:00:47]} Rh8 {[%emt 0:00:17]} 32. Bb5 {[%emt 0:01:21]} Rh4 {[%emt 0:00:36]} 33. Bc6 {[%emt 0:00:35]} Rg4+ {[%emt 0:00:36]} 34. Kf2 {[%emt 0:00:19]} Rh4 {[%emt 0:02:40]} 35. Ke3 {[%emt 0:00:19]} Rh1 {[%emt 0:01:22]} 36. Rf2 {[%emt 0:00:21]} Rh3+ {[%emt 0:00:49]} 37. Rf3 {[%emt 0:00:13]} Rh1 {[%emt 0:00:36]} 38. Rf2 {[%emt 0:00:02]} Rh3+ {[%emt 0:00:57]} 39. Rf3 {[%emt 0:00:03]} Rh2 {[%emt 0:00:49]} 40. Rf2 {[%emt 0:00:09]} Rh3+ {[%emt 0:00:46]} 1/2-1/2